[Event "26th Womens ECCC 2022"]
[Site "Mayrhofen"]
[Date "2022.10.08"]
[Round "6.2"]
[White "Stefanova, Antoaneta"]
[Black "Saduakassova, Dinara"]
[Result "1/2-1/2"]
[ECO "E20"]
[WhiteElo "2440"]
[BlackElo "2434"]
[Annotator "TA"]
[PlyCount "70"]
[EventDate "2022.10.03"]
[EventType "team-tourn"]
[EventCountry "AUT"]
[SourceTitle "playchess.com"]
[Source "ChessBase"]
[SourceQuality "1"]
[TimeControl "40/5400+30:1800+30"]

{[%evp 10,70,0,0,0,0,0,0,12,12,22,10,4,7,0,0,0,3,12,20,18,11,27,11,30,19,32,0,0,0,0,0,22,0,0,-8,-13,-14,-18,-27,-26,-16,-16,-23,0,0,35,0,0,0,0,-108,-83,-113,-37,-84,127,-253,-208,-204,0,-243,0]} 1. d4 {[%emt 0:00:10]} Nf6 {[%emt 0:00:19]} 2. c4 {[%emt 0:00:07]} e6 {[%emt 0:00:05]} 3. Nc3 {[%emt 0:00:10]} Bb4 {[%emt 0:00:05]} 4. f3 {[%emt 0:00:07][%cal Bf2f3,Bf3e4,Be4d5][%mdl 32]} d5 {[%emt 0:06:22]} 5. a3 {[%emt 0:01:04]} Be7 {[%emt 0:00:30]} 6. e4 {[%emt 0:00:57]} dxe4 {[%emt 0:00:10] E20: Nimzo-Indian: 4 g3 and 4 f3.} 7. fxe4 {[%emt 0:00:06]} c5 {[%emt 0:00:11]} 8. d5 {[%emt 0:01:47] e5 is the strong threat.} exd5 {[%emt 0:01:53] The position is equal.} 9. exd5 {[%emt 0:02:38]} O-O {[%emt 0:00:31]} 10. Be2 $1 {[%emt 0:01:28] The main line 10.Be2 scores better than 10.Nf3.} Bd6 {[%emt 0:07:04]} 11. Nb5 {[%emt 0:10:27]} a6 {[%emt 0:10:59]} (11... Re8 {looks sharper.} 12. Nf3 Bg4 13. O-O a6) 12. Nxd6 {[%emt 0:03:52]} Qxd6 {[%emt 0:00:05]} 13. Nf3 {[%emt 0:01:28] [#]} b5 $146 {[%emt 0:03:18]} ({Predecessor:} 13... Bg4 14. O-O Nbd7 15. Nh4 Bxe2 16. Qxe2 Rae8 17. Qf3 Re4 18. Bf4 Ne5 19. Qb3 Qd7 20. Bxe5 Rxh4 21. Bxf6 gxf6 22. Rxf6 {1-0 (30) Matlakov,M (2710)-Predke,A (2650) Izhevsk 2019}) 14. b3 {[%emt 0:03:54]} bxc4 {[%emt 0:02:32]} 15. bxc4 {[%emt 0:00:07]} Bg4 {[%emt 0:01:49]} 16. O-O {[%emt 0:03:10] White wants to play Nh4.} Nbd7 {[%emt 0:00:54]} 17. Qc2 {[%emt 0:25:36]} Rfe8 {[%emt 0:10:32]} 18. a4 {[%emt 0:01:31]} Re7 {[%emt 0:09:37]} 19. Ra3 {[%emt 0:01:51]} Rae8 {[%emt 0:01:26]} 20. Bd1 {[%emt 0:01:01]} Ne5 {[%emt 0:09:32]} 21. Nh4 {[%emt 0:09:03]} (21. h3 $5 {[%cal Rh3g4]}) 21... Ng6 {[%emt 0:05:17]} 22. Nxg6 {[%emt 0:13:44]} hxg6 {[%emt 0:00:52]} 23. Bf4 {[%emt 0:08:42]} Qd7 {[%emt 0:01:34]} 24. h3 {[%emt 0:02:20]} Bxd1 {[%emt 0:05:45]} 25. Qxd1 {[%emt 0:00:04]} Re4 {[%emt 0:00:19]} 26. Rc3 {[%emt 0:02:00]} Rd4 {[%emt 0:05:14]} 27. Qb3 {[%emt 0:00:59]} Ne4 {[%emt 0:04:13]} 28. Rc2 {[%emt 0:01:02] [#] Black must now prevent Be3.} (28. Rcf3 $5 {[%cal Rf4e3]}) 28... Nd6 {[%emt 0:00:53]} 29. a5 {[%emt 0:01:30]} Nf5 {[%emt 0:06:08]} 30. Bc1 {[%emt 0:02:15]} (30. Rd2 $11) 30... Rde4 {[%emt 0:00:40] aiming for ...Nd4.} 31. Rcf2 {[%emt 0:01:36] [#]} Qc7 {[%emt 0:02:36]} ({Better is} 31... f6 $1 $17) 32. Bd2 {[%emt 0:00:42]} (32. Bf4 $15 Qxa5 33. Qb7) 32... Ng3 $2 {[%emt 0:03:33]} (32... Qg3 $17 33. Qb6 Qd3) 33. Rxf7 $2 {[%emt 0:00:45][%mdl 8192]} (33. Bf4 $16 Rxf4 34. Qxg3) 33... Ne2+ {[%emt 0:00:21]} 34. Kh1 {[%emt 0:00:05]} Ng3+ {[%emt 0:00:16][%mdl 1024] Black has strong compensation.} 35. Kg1 {[%emt 0:00:04] The board is on fire.} Ne2+ $2 {[%emt 0:00:23] Weighted Error Value: White=0.29 (precise) /Black=0.27 (precise)} (35... Qe5 $19 36. R1f3 Qd4+ 37. Kh2 Qxd2) 1/2-1/2

[Event "26th Womens ECCC 2022"]
[Site "Mayrhofen"]
[Date "2022.10.08"]
[Round "6.3"]
[White "Atalik, Ekaterina"]
[Black "Cramling, Pia"]
[Result "0-1"]
[ECO "A30"]
[WhiteElo "2406"]
[BlackElo "2459"]
[Annotator "TA"]
[PlyCount "112"]
[EventDate "2022.10.03"]
[EventType "team-tourn"]
[EventCountry "AUT"]
[SourceTitle "playchess.com"]
[Source "ChessBase"]
[SourceQuality "1"]
[TimeControl "40/5400+30:1800+30"]

{[%evp 24,112,27,10,35,0,0,17,14,8,24,0,0,-127,-125,-128,-130,-139,-148,-143,-155,-131,-29,-43,0,-187,-190,-188,-171,-181,-186,-190,-201,-185,-158,-181,-151,-185,-173,-170,-154,-159,-145,-162,-98,-102,0,-142,-156,-220,-225,-229,-233,-257,-222,-206,-133,-204,-205,-199,-197,-196,-200,-192,-189,-194,-185,-179,-127,-180,-159,-264,-256,-268,-265,-264,-271,-258,-246,-285,-275,-497,-524,-506,-502,-604,-604,-671,-626,-630,-602]} 1. c4 {[%emt 0:00:03]} c5 {[%emt 0:00:39]} 2. Nf3 {[%emt 0:00:25]} Nf6 {[%emt 0:00:57]} 3. Nc3 {[%emt 0:00:34]} e6 {[%emt 0:02:45]} 4. g3 {[%emt 0:04:56]} a6 {[%emt 0:05:19]} 5. Bg2 {[%emt 0:00:36]} Qc7 {[%emt 0:00:38]} 6. O-O {[%emt 0:01:03]} Be7 {[%emt 0:00:07]} 7. b3 {[%emt 0:05:02]} O-O {[%emt 0:00:46]} 8. Bb2 {[%emt 0:01:00]} b6 {[%emt 0:08:28]} 9. d4 {[%emt 0:02:39]} cxd4 {[%emt 0:01:37]} 10. Qxd4 {[%emt 0:02:05]} d6 {[%emt 0:08:54]} 11. Rfd1 {[%emt 0:12:05]} Bb7 {[%emt 0:00:58]} 12. Rac1 {[%emt 0:00:55]} Nbd7 {[%emt 0:05:41]} 13. h3 {[%emt 0:02:13]} Rfd8 {[%emt 0:06:57] A30: Symmetrical English: Double Fianchetto and Hedgehog.} 14. g4 {[%emt 0:01:20]} Rac8 {[%emt 0:05:01]} 15. g5 {[%emt 0:02:50]} Nh5 {[%emt 0:06:20] The position is equal.} 16. Qg4 {[%emt 0:09:04]} g6 {[%emt 0:00:14] [#]} 17. Ne4 $146 {[%emt 0:03:44]} ({Predecessor:} 17. h4 Qb8 18. Ne4 Nc5 19. Nf6+ Bxf6 20. Bxf6 Nxf6 21. gxf6 Ne4 22. Qf4 e5 23. Qe3 Nxf6 24. Qxb6 {½-½ (72) Kempinski,R (2510)-Lauber,A (2380) Medellin 1996}) 17... Qb8 {[%emt 0:11:15]} 18. Nxd6 {[%emt 0:10:52]} Bxd6 $17 {[%emt 0:10:05]} 19. Qd4 {[%emt 0:00:13][%csl Gb2][%cal Rd4h8] [#]} Ndf6 $1 {[%emt 0:00:23][%mdl 512]} 20. Qc3 {[%emt 0:01:38]} (20. gxf6 $2 Bxf3 21. Bxf3 Bh2+ 22. Kf1 Rxd4 $19) 20... Bf4 $1 {[%emt 0:05:45]} (20... Bxf3 21. Bxf3 Bf4 22. Bxh5 Bxg5 23. Bf3 $11) 21. gxf6 {[%emt 0:13:43]} Bxc1 {[%emt 0:01:12] Black is more active.} 22. Rxc1 {[%emt 0:02:29]} Qf4 {[%emt 0:05:55]} (22... Nf4 $17 23. Bf1 Rc5) 23. e3 $11 {[%emt 0:03:16]} Qf5 {[%emt 0:00:37]} 24. Qe5 $2 {[%emt 0:03:51] [#]} Rc5 $1 $36 {[%emt 0:00:56][%mdl 2048] Keeping White busy.} 25. Qxf5 {[%emt 0:01:06]} Rxf5 {[%emt 0:00:17]} (25... gxf5 26. Kh2 $11) (25... exf5 26. Bd4 $11) 26. Nh4 {[%emt 0:00:18]} Rg5 {[%emt 0:00:11]} 27. Kf1 {[%emt 0:02:58]} Bxg2+ {[%emt 0:00:21]} 28. Nxg2 {[%emt 0:00:03]} e5 {[%emt 0:02:27] Inhibits Bd4. And now ...Rd2 would win.} 29. Ba3 {[%emt 0:01:03]} e4 {[%emt 0:00:47]} (29... Nxf6 30. Be7 Rd2 31. Bxf6 $16) 30. Rc2 {[%emt 0:07:28]} Rd1+ {[%emt 0:02:00]} (30... Nxf6 31. Be7 Rd1+ 32. Ke2 $17) 31. Ke2 {[%emt 0:00:40]} Rd7 {[%emt 0:00:13]} (31... Rxg2 32. Kxd1 h6 33. Rd2 $18) 32. Nf4 {[%emt 0:01:30]} Nxf6 {[%emt 0:03:18]} 33. Bb2 {[%emt 0:00:56]} Rd6 {[%emt 0:01:11]} ({Black should play} 33... Rf5 $19 34. Ke1 Rd6) 34. Ba3 $17 {[%emt 0:00:33]} Rd7 {[%emt 0:00:07] Hoping for ...Rg1.} 35. Bb2 {[%emt 0:00:16]} Rf5 {[%emt 0:00:43]} 36. b4 {[%emt 0:02:30]} (36. Ke1 $17) 36... g5 $19 {[%emt 0:00:23]} 37. Ng2 {[%emt 0:00:34]} Rc7 {[%emt 0:01:39]} 38. Bd4 {[%emt 0:00:21]} Rc6 {[%emt 0:00:30]} 39. Ne1 {[%emt 0:01:04]} Ne8 {[%emt 0:02:31]} 40. f3 {[%emt 0:00:40]} (40. a4 $17) 40... Nd6 {[%emt 0:01:11]} 41. c5 {[%emt 0:31:02] [#]} bxc5 $1 {[%emt 0:01:33]} 42. bxc5 {[%emt 0:00:00]} exf3+ {[%emt 0:02:31]} 43. Nxf3 {[%emt 0:00:00]} f6 {[%emt 0:04:54] Inhibits Ne5.} 44. Nd2 {[%emt 0:00:00][%cal Oc5d6]} Rd5 {[%emt 0:08:47]} 45. Kd3 {[%emt 0:00:00]} Nf7 {[%emt 0:06:07]} (45... Nb7 $19 {[%cal Rb7c5]} 46. Nb3 Rd7) 46. Ke4 {[%emt 0:00:00]} (46. Kc4 $17 {was necessary.} Rd8 47. Ne4) 46... Rd7 {[%emt 0:00:35]} 47. Rb2 {[%emt 0:00:00]} (47. Nc4 $17) 47... Re6+ {[%emt 0:03:20]} 48. Kf5 {[%emt 0:00:00]} Nd8 {[%emt 0:00:05]} 49. Nc4 {[%emt 0:00:00]} Rd5+ {[%emt 0:00:51]} 50. Kg4 {[%emt 0:00:00]} Nc6 {[%emt 0:02:58]} 51. Nd6 {[%emt 0:00:03]} Kg7 {[%emt 0:02:27]} ({Don't blunder} 51... Nxd4 $2 52. exd4 Kg7 53. Kf3 $19 (53. Rb7+ $2 Kg6 $19)) 52. Kf3 $2 {[%emt 0:04:16]} (52. h4 gxh4 53. Nf5+ Kf8 54. Kf4) 52... Kg6 {[%emt 0:00:33] Black is clearly winning.} 53. Rd2 {[%emt 0:01:43]} f5 {[%emt 0:00:29]} 54. Nc4 {[%emt 0:00:56]} Re4 {[%emt 0:00:35][%cal Rc6d4]} 55. Bc3 {[%emt 0:00:35]} Rxd2 {[%emt 0:00:38]} (55... Rxc4 56. Rxd5 g4+ 57. hxg4 fxg4+ 58. Ke2 Rxc3 59. Rd6+ Kf5 60. Rxc6 $19) 56. Nxd2 {[%emt 0:00:02]} Rh4 {[%emt 0:00:32] Weighted Error Value: White=0.31/Black=0.17 (very precise)} 0-1

[Event "26th Womens ECCC 2022"]
[Site "Mayrhofen"]
[Date "2022.10.08"]
[Round "6.4"]
[White "Paehtz, Elisabeth"]
[Black "Efroimski, Marsel"]
[Result "1/2-1/2"]
[ECO "B22"]
[WhiteElo "2469"]
[BlackElo "2462"]
[Annotator "TA"]
[PlyCount "110"]
[EventDate "2022.10.03"]
[EventType "team-tourn"]
[EventCountry "AUT"]
[SourceTitle "playchess.com"]
[Source "ChessBase"]
[SourceQuality "1"]
[TimeControl "40/5400+30:1800+30"]

{[%evp 18,110,-12,-12,24,-6,0,0,0,0,0,8,18,17,48,0,0,0,0,0,42,36,37,45,35,39,30,0,8,0,37,29,34,29,29,29,29,35,55,58,112,62,82,82,143,0,80,5,49,45,53,0,0,0,0,0,0,0,0,0,0,0,0,0,13,-10,-8,-10,-10,-25,-7,-25,-25,-25,-25,-25,-25,-25,0,0,0,-25,-25,-25,0,0,0,0,0,0,0,0,0,0,0]} 1. e4 {[%emt 0:00:02]} c5 {[%emt 0:00:04]} 2. c3 {[%emt 0:00:03]} Nf6 {[%emt 0:00:03]} 3. e5 {[%emt 0:00:03]} Nd5 {[%emt 0:00:05]} 4. Nf3 {[%emt 0:00:07]} Nc6 {[%emt 0:00:14]} 5. d4 {[%emt 0:00:04]} cxd4 {[%emt 0:00:04]} 6. Bc4 {[%emt 0:00:03]} Nb6 {[%emt 0:00:43]} 7. Bb3 {[%emt 0:00:04]} d5 {[%emt 0:02:21]} 8. exd6 {[%emt 0:00:05]} Qxd6 {[%emt 0:00:04]} 9. Na3 {[%emt 0:00:21]} a6 {[%emt 0:01:45]} 10. O-O {[%emt 0:02:43][%cal Rf3d4]} Na5 {[%emt 0:04:45] [#] B22: Sicilian: 2 c3.} 11. Nxd4 $146 {[%emt 0:05:50][%cal Ob3f7]} ({Predecessor:} 11. Ba4+ Nxa4 12. Qxa4+ Nc6 13. Nxd4 Qd7 14. Nf3 Ne5 15. Qe4 Nxf3+ 16. Qxf3 Qf5 17. Qg3 Qg4 18. Qc7 Qd7 19. Qg3 Qg4 20. Qc7 Qd7 {½-½ (20) Caroff,F (2057)-Jouneau,Q (1891) Fouesnant 2006}) 11... Nxb3 {[%emt 0:02:48]} 12. Qxb3 {[%emt 0:00:45]} e5 {[%emt 0:04:26]} 13. Nf3 {[%emt 0:13:40] aiming for Be3.} Be6 {[%emt 0:02:28]} 14. c4 {[%emt 0:00:06]} Qc7 {[%emt 0:10:08]} 15. Be3 {[%emt 0:09:22]} Nxc4 {[%emt 0:05:33]} 16. Nxc4 {[%emt 0:04:54]} (16. Qa4+ $1 $14 Qc6 17. Qxc6+ bxc6 18. Nxc4 Bxc4 19. Rfc1) 16... Qxc4 $11 {[%emt 0:01:48]} ({Don't play} 16... Bxc4 17. Qc2 Rc8 18. Rfc1 $14) 17. Qxb7 {[%emt 0:00:33]} Bd5 {[%emt 0:01:53]} 18. Qb6 {[%emt 0:00:13]} Bxf3 {[%emt 0:02:28]} 19. gxf3 {[%emt 0:00:26] Strongly threatening Qb7.} Be7 {[%emt 0:07:30]} 20. Rfc1 {[%emt 0:24:06][%cal Bf1c1,Bc1c5,Bc5d5][%mdl 32]} Qb5 {[%emt 0:08:38]} 21. Qc7 {[%emt 0:00:23]} Bd8 {[%emt 0:02:49]} 22. Qd6 {[%emt 0:02:29]} Be7 {[%emt 0:01:40]} 23. Qc7 $40 {[%emt 0:01:48][%mdl 128] And now Bc5 would win. White has some attack.} Bd8 $1 {[%emt 0:00:18]} 24. a4 {[%emt 0:06:17]} Qd5 {[%emt 0:01:47]} 25. Rc5 {[%emt 0:03:36]} Bxc7 {[%emt 0:00:39]} 26. Rxd5 {[%emt 0:00:02] Black must now prevent Rc1.} Ke7 {[%emt 0:04:01]} 27. Rc1 {[%emt 0:01:20]} Rhc8 {[%emt 0:04:19]} 28. Rc6 {[%emt 0:01:49]} a5 {[%emt 0:04:13]} ({Black should try} 28... Ke8 $14) 29. Bd2 {[%emt 0:16:47] White is much more active.} ({White should play} 29. Kg2 $16) 29... f6 {[%emt 0:04:29] [#]} 30. Kg2 $1 {[%emt 0:02:50][%cal Od2a5]} Bd8 {[%emt 0:05:13] [#]} (30... h5 $142) 31. Rcd6 {[%emt 0:02:59]} (31. Rxc8 $1 $16 Rxc8 32. Bxa5) 31... Ke8 {[%emt 0:02:03]} (31... Bc7 $11 {keeps the balance.} 32. Rc6 Bd8 33. Rxc8 Rxc8) 32. Bc3 {[%emt 0:00:58]} (32. Rd7 $16) 32... Rc4 {[%emt 0:01:51]} 33. Rd7 {[%emt 0:01:13]} Be7 {[%emt 0:00:59]} 34. Bxa5 {[%emt 0:00:43]} (34. Rb7 $1 $14) 34... Rxa5 {[%emt 0:03:21]} 35. Rxe7+ $1 {[%emt 0:00:02]} Kxe7 {[%emt 0:00:04]} 36. Rxa5 $14 {[%emt 0:00:02][%mdl 4096] Endgame KR-KR} Rb4 {[%emt 0:00:05]} 37. Ra7+ {[%emt 0:00:04]} Kf8 {[%emt 0:00:13]} 38. a5 {[%emt 0:01:56] Hoping for a6.} Rxb2 {[%emt 0:00:12]} 39. a6 {[%emt 0:00:15]} Ra2 {[%emt 0:00:12]} 40. Kg3 {[%emt 0:00:20]} h5 {[%emt 0:02:56]} 41. h4 {[%emt 0:31:04]} Kg8 {[%emt 0:31:45]} 42. Ra8+ {[%emt 0:00:00]} Kh7 {[%emt 0:00:00]} 43. a7 {[%emt 0:00:00]} Kg6 {[%emt 0:00:00]} 44. Kg2 {[%emt 0:00:00]} Ra3 {[%emt 0:00:00]} 45. Kg3 {[%emt 0:00:00]} Kf5 {[%emt 0:00:00]} 46. Rh8 {[%emt 0:00:00]} Rxa7 {[%emt 0:00:00] Black wants to play ...g6.} 47. Rxh5+ {[%emt 0:00:00]} g5 {[%emt 0:00:00]} 48. hxg5 {[%emt 0:00:00]} Rg7 {[%emt 0:00:00]} 49. Rh4 {[%emt 0:00:00]} Rxg5+ {[%emt 0:00:00]} 50. Kh2 {[%emt 0:00:00]} Ke6 {[%emt 0:00:00]} 51. f4 {[%emt 0:00:00] The position is equal.} Rg8 {[%emt 0:00:00]} 52. fxe5 {[%emt 0:00:00]} Kxe5 {[%emt 0:00:00]} 53. Ra4 $1 {[%emt 0:00:00]} Kf5 {[%emt 0:00:00]} 54. Rb4 {[%emt 0:00:00]} Rg7 {[%emt 0:00:00]} 55. Ra4 {[%emt 0:00:00]} Rg8 {[%emt 0:00:00] Weighted Error Value: White=0.15 (very precise) /Black=0.14 (very precise)} 1/2-1/2

[Event "26th Womens ECCC 2022"]
[Site "Mayrhofen"]
[Date "2022.10.08"]
[Round "6.5"]
[White "Danielian, Elina"]
[Black "Mammadzada, Gunay"]
[Result "1-0"]
[ECO "D47"]
[WhiteElo "2431"]
[BlackElo "2483"]
[Annotator "TA"]
[PlyCount "53"]
[EventDate "2022.10.03"]
[EventType "team-tourn"]
[EventCountry "AUT"]
[SourceTitle "playchess.com"]
[Source "ChessBase"]
[SourceQuality "1"]
[TimeControl "40/5400+30:1800+30"]

{[%evp 22,53,0,-16,0,8,97,100,99,93,136,152,152,138,256,160,290,313,280,291,328,318,429,402,447,384,1300,1309,1295,1293,1277,1260,1116,904]} 1. d4 {[%emt 0:00:03]} d5 {[%emt 0:00:17]} 2. c4 {[%emt 0:00:25]} c6 {[%emt 0:00:06]} 3. Nf3 {[%emt 0:00:12]} Nf6 {[%emt 0:00:17]} 4. Nc3 {[%emt 0:00:47]} e6 {[%emt 0:00:18]} 5. e3 {[%emt 0:00:10]} Nbd7 {[%emt 0:00:20]} 6. Bd3 {[%emt 0:00:42]} dxc4 {[%emt 0:10:58]} 7. Bxc4 {[%emt 0:00:05]} b5 {[%emt 0:00:05]} 8. Bd3 {[%emt 0:00:27]} Bb7 {[%emt 0:00:05]} 9. O-O {[%emt 0:01:20]} a6 {[%emt 0:01:41]} 10. e4 {[%emt 0:20:48]} c5 {[%emt 0:00:20]} 11. d5 {[%emt 0:00:50]} Qc7 {[%emt 0:00:12]} 12. Qe2 {[%emt 0:20:29]} c4 {[%emt 0:13:04] D48: Semi-Slav: Meran System: 7...b5 8 Bd3 a6.} 13. Bc2 {[%emt 0:00:11]} Bc5 {[%emt 0:20:10]} (13... Bd6 $1 $11) 14. dxe6 $1 $16 {[%emt 0:06:19]} fxe6 {[%emt 0:00:01] White is better.} 15. e5 {[%emt 0:00:38]} Ng4 {[%emt 0:14:23] [#]} 16. Ng5 $1 {[%emt 0:06:14][%csl LRe6,LRg4,LRh7]} Ndxe5 {[%emt 0:02:23] [#]} 17. Bf4 $1 $36 {[%emt 0:00:54][%mdl 2048] White is really pushing.} O-O-O {[%emt 0:15:43]} (17... Qc6 $2 18. Be4 Qd6 19. Bxb7 $18) (17... Qe7 $16) 18. Be4 {[%emt 0:00:32] [#]} (18. Qxg4 Nxg4 19. Bxc7 Rd2 $15) 18... Bxe4 $146 {[%emt 0:09:13]} (18... Qe7 $16 {keeps fighting.}) ({Predecessor:} 18... Qe7 19. h3 Nxf2 20. Rxf2 Bxf2+ 21. Qxf2 Bxe4 22. Bxe5 Bb7 23. Qa7 Qxg5 24. Qb8+ Kd7 25. Qxb7+ Ke8 26. Qc6+ Ke7 27. Qc5+ Kf7 28. Ne4 Qh6 29. Rf1+ Kg6 30. Bxg7 {1-0 (30) Najdorf,M-Foguelman,A Buenos Aires 1968}) 19. Ncxe4 $18 {[%emt 0:00:54]} ({Not} 19. Qxe4 Nxf2 20. Rxf2 (20. Qa8+ Kd7 $15) 20... Bxf2+ 21. Kh1 Bd4 $17) 19... Bd4 {[%emt 0:02:22]} 20. Nxe6 {[%emt 0:07:06]} Qf7 {[%emt 0:00:25]} 21. N4g5 {[%emt 0:07:13] Chess con chili.} Qf5 {[%emt 0:00:26]} 22. h3 {[%emt 0:01:24]} Nd3 {[%emt 0:05:24]} 23. Qf3 {[%emt 0:15:49][%cal Rf3c6]} ({Less strong is} 23. Qxg4 Qxg4 24. hxg4 Bxb2 $18) ({Worse is} 23. Qe4 Qxe4 24. Nxe4 Rhe8 25. Nxd8 Rxe4 $17) 23... Nge5 {[%emt 0:01:14] Prevents Qc6+.} (23... Qd5 24. Qxg4 h5) 24. Qa8+ {[%emt 0:00:18] White is clearly winning.} Kd7 {[%emt 0:00:01]} 25. Qb7+ {[%emt 0:01:09]} Kd6 {[%emt 0:00:01]} 26. Nxd4 {[%emt 0:01:16]} Qxf4 {[%emt 0:00:15]} 27. Ne4+ {[%emt 0:00:15] Black did not feel at home in the position after the opening.  Weighted Error Value: White=0.14 (very precise) /Black=0.70} 1-0

[Event "26th Womens ECCC 2022"]
[Site "Mayrhofen"]
[Date "2022.10.08"]
[Round "6.6"]
[White "Fataliyeva, Ulviyya"]
[Black "Ushenina, Anna"]
[Result "1/2-1/2"]
[ECO "A45"]
[WhiteElo "2422"]
[BlackElo "2445"]
[Annotator "TA"]
[PlyCount "89"]
[EventDate "2022.10.03"]
[EventType "team-tourn"]
[EventCountry "AUT"]
[SourceTitle "playchess.com"]
[Source "ChessBase"]
[SourceQuality "1"]
[TimeControl "40/5400+30:1800+30"]

{[%evp 9,89,0,16,0,46,41,87,95,95,96,97,58,67,14,55,31,38,29,47,56,46,64,50,27,58,58,59,55,58,31,39,41,42,26,26,37,29,34,27,0,0,0,0,0,0,0,0,0,6,6,6,6,6,0,0,-10,-10,-10,0,0,0,0,0,0,0,0,0,0,0,0,0,0,0,0,0,0,0,0,0,0,0,0]} 1. d4 {[%emt 0:00:04]} Nf6 {[%emt 0:00:15]} 2. Nc3 {[%emt 0:00:09]} d5 {[%emt 0:00:15]} 3. Bf4 {[%emt 0:00:06]} c6 {[%emt 0:07:16]} 4. Nf3 {[%emt 0:02:35]} Bf5 {[%emt 0:15:45]} 5. e3 {[%emt 0:00:35]} h6 {[%emt 0:00:25]} 6. Ne5 {[%emt 0:01:51] [#] D00: 1 d4 d5: Unusual lines.} Ne4 $146 {[%emt 0:05:05]} (6... e6 $11) ({Predecessor:} 6... Nbd7 7. Bd3 Bxd3 8. Nxd3 e6 9. O-O Be7 10. h3 O-O 11. Qf3 c5 12. dxc5 Nxc5 13. Nxc5 Bxc5 {0-1 (43) Bortnyk,O (2604)-Boruchovsky,A (2551) Chess.com INT 2022}) 7. Bd3 {[%emt 0:13:37]} e6 {[%emt 0:24:47]} (7... Nd7 $14 {should be considered.}) 8. Bxe4 $16 {[%emt 0:07:11] White is better.} Bxe4 {[%emt 0:02:10]} 9. Nxe4 {[%emt 0:01:49]} ({Much less strong is} 9. Qh5 g6 10. Qh3 g5 $11) 9... dxe4 {[%emt 0:00:01]} 10. Qh5 {[%emt 0:00:55][%csl Ge5][%cal Rh5f7] [#]} g6 {[%emt 0:03:29]} 11. Qg4 {[%emt 0:18:19] White is more active.} (11. Qe2 $14) 11... Rg8 {[%emt 0:16:37]} 12. h4 {[%emt 0:02:36]} Nd7 {[%emt 0:01:26]} 13. O-O-O {[%emt 0:04:00]} Nxe5 {[%emt 0:04:25]} 14. dxe5 {[%emt 0:03:16]} Qa5 {[%emt 0:00:03]} 15. Kb1 {[%emt 0:00:27]} Bg7 {[%emt 0:01:58]} 16. Rd6 {[%emt 0:00:59]} Rd8 {[%emt 0:02:09]} 17. Qd1 {[%emt 0:07:00]} Bf8 {[%emt 0:00:27]} 18. Rxd8+ {[%emt 0:04:00]} Qxd8 {[%emt 0:00:02]} 19. Qd4 {[%emt 0:00:20]} Qxd4 {[%emt 0:02:51]} 20. exd4 $14 {[%emt 0:00:25][%mdl 4096] Endgame KRB-KRB} Be7 {[%emt 0:01:35]} 21. Bxh6 {[%emt 0:13:48]} Rh8 {[%emt 0:00:09]} 22. Be3 {[%emt 0:00:10]} Rxh4 {[%emt 0:00:10]} 23. Rxh4 {[%emt 0:00:03]} Bxh4 {[%emt 0:00:02] KB-KB} 24. g4 {[%emt 0:00:04] [#] Black must now prevent g5.} f5 {[%emt 0:03:18] Strongly threatening ...g5. The position is equal.} 25. exf6 $1 {[%emt 0:02:01]} Bxf6 {[%emt 0:00:02]} 26. Kc1 {[%emt 0:02:31]} Kd7 {[%emt 0:00:34]} 27. Kd2 {[%emt 0:01:55]} a6 {[%emt 0:06:36]} 28. Kc3 {[%emt 0:04:13]} e5 {[%emt 0:01:36]} 29. Kc4 {[%emt 0:01:10]} Kd6 {[%emt 0:00:39]} 30. dxe5+ $1 {[%emt 0:01:56]} Bxe5 {[%emt 0:00:02]} 31. Bc5+ {[%emt 0:00:07]} Ke6 {[%emt 0:00:32]} 32. c3 {[%emt 0:03:02][%cal Bc2c3,Bc3c4][%mdl 32]} b5+ {[%emt 0:00:39]} 33. Kb4 {[%emt 0:01:29]} Bc7 {[%emt 0:00:02]} 34. c4 {[%emt 0:01:53]} a5+ {[%emt 0:00:33]} 35. Kb3 {[%emt 0:00:07]} Ke5 {[%emt 0:01:22] And now ...Kf4 would win.} 36. Be3 {[%emt 0:02:06]} Bd8 {[%emt 0:00:15]} 37. cxb5 {[%emt 0:00:57]} cxb5 {[%emt 0:00:02]} 38. a4 {[%emt 0:00:02]} bxa4+ {[%emt 0:00:23]} 39. Kxa4 {[%emt 0:00:01]} Kd5 {[%emt 0:00:25]} 40. Kb5 {[%emt 0:00:18]} Bf6 {[%emt 0:00:36]} 41. b3 {[%emt 0:31:24]} Bc3 {[%emt 0:01:53]} 42. Bb6 {[%emt 0:00:00]} Be1 {[%emt 0:00:06]} 43. Be3 {[%emt 0:00:00]} Bc3 {[%emt 0:00:07]} 44. Bb6 {[%emt 0:00:00]} Be1 {[%emt 0:00:08]} 45. Be3 {[%emt 0:00:00] Weighted Error Value: White=0.09 (flawless) /Black=0.08 (flawless)} 1/2-1/2